Cogmind - Beta 15 @@@ ROGUE MODE // 2025.05.28 @ 22:51:42 Player: celerysam Result: Destroyed by AF-NDN(R) with Subdweller Beam Cannon Performance ------------- Evolutions (0) 0 Regions Visited (2) 400 Robots Destroyed (24) 120 Value Destroyed (799) 799 Prototype IDs (13) 260 Alien Tech Used (0) 0 Bonus (0) 0 TOTAL SCORE: 1579 Bonus ------- None Cogmind --------- Core Integrity 0/250 Matter 250/300 Energy 160/160 System Corruption 0% Temperature Cool (92) Movement Rolling (190) Ox6 Location -10/Subcaves Parts ------- > --- POWER (1) -------- Light Nuclear Core > --- PROPULSION (2) --- Compact Wheel > --- UTILITY (2) ------ Huge Storage Unit Makeshift Light Armor Plating > --- WEAPON (2) ------- Subdweller Beam Cannon Battle Cannon > --- INVENTORY (25) --- Light Nuclear Core Subdweller Monowheel Subdweller Monowheel Subdweller Monowheel Seismic Detector ECM Suite Tower Shield Riot Gun Subdweller Shrapnel Launcher SUBCON Basin (Full) Peak State ------------ > --- POWER ------------ Light Nuclear Core > --- PROPULSION ------- Wheel Compact Wheel > --- UTILITY ---------- Huge Storage Unit Makeshift Light Armor Plating > --- WEAPON ----------- Subdweller Beam Cannon Battle Cannon > --- INVENTORY -------- Light Nuclear Core Subdweller Monowheel Subdweller Monowheel Subdweller Monowheel Seismic Detector ECM Suite Tower Shield Riot Gun Subdweller Shrapnel Launcher SUBCON Basin [Rating: 35] Favorites ----------- Power Light Ion Engine Engine Light Ion Engine Power Core Light Nuclear Core Propulsion Wheel Leg Aluminum Leg Wheel Wheel Utility Huge Storage Unit Device Improved Heat Sink Storage Huge Storage Unit Protection Core Shielding Weapon Particle Gun Energy Gun Particle Gun Energy Cannon Subdweller Beam Cannon Ballistic Gun Light Assault Rifle Ballistic Cannon Battle Cannon Launcher Subdweller Shrapnel Launcher Special Weapon Mining Laser Build | -11 -10 -10 ------- Run | Yrd Mat Sub Slots Evolved . | . . . Power . | . . . Propulsion . | . . . Utility . | . . . Weapon . | . . . Parts Attached 29 | 6 16 7 Power 6 | 1 3 2 Engine 4 | 1 2 1 Core 2 | . 1 1 Reactor . | . . . Propulsion 6 | 2 4 . Treads . | . . . Leg 2 | 2 . . Wheel 4 | . 4 . Hover . | . . . Flight . | . . . Utility 6 | 1 3 2 Device 2 | . 2 . Storage 2 | 1 1 . Processor . | . . . Hackware . | . . . Protection 2 | . . 2 Artifact . | . . . Weapon 11 | 2 6 3 Energy Gun 2 | . 2 . Energy Cannon 1 | . . 1 Ballistic Gun 5 | 2 3 . Ballistic Cannon 1 | . . 1 Launcher 1 | . . 1 Special Weapon 1 | . 1 . Impact Weapon . | . . . Slashing Weapon . | . . . Piercing Weapon . | . . . Special Melee Weapon . | . . . Unidentified Prototypes . | . . . Parts Lost 6 | . 4 2 Power 2 | . 1 1 Propulsion 3 | . 2 1 Utility 1 | . 1 . Weapon . | . . . Highest Loss Streak 2 | . 2 1 To Critical Strikes . | . . . Average Backups 18 | 4 14 22 Power 2 | . 3 2 Propulsion 2 | 3 2 2 Utility 5 | . 2 7 Weapon 6 | . 4 8 Tool/Special . | . . . Unused Backups 21 | . . 21 Power 1 | . . 1 Propulsion 5 | . . 5 Utility 7 | . . 7 Weapon 6 | . . 6 Tool/Special 2 | . . 2 Average Slot Usage (%) 96 | . 93 99 Engine 9 | . 10 9 Core 3 | . 3 4 Leg 1 | . 3 . Wheel 25 | . 23 28 Device 5 | . 10 1 Storage 14 | . 14 14 Protection 6 | . . 12 Energy Gun 12 | . 13 12 Energy Cannon 4 | . . 8 Ballistic Gun 5 | . 11 . Launcher 1 | . . 1 Special Weapon 3 | . 2 4 Peak Build Rating 35 | 6 16 35 Average Rating 12 | 3 10 14 On Entrance 7 | . 6 16 Naked Turns . | . . . Heaviest Build 100 | 11 92 100 Greatest Support 26 | 20 26 26 Greatest Overweight (x) 30 | . 30 3 Average Overweight (x) 2 | . 2 3 Largest Inventory Capacity 25 | 8 25 25 Average Capacity 23 | 6 22 25 Most Carried 25 | 6 22 25 Average Carried 18 | 4 14 23 Final Capacity 25 | 8 25 25 Final Carried 25 | 6 22 25 Class Distribution -------------------- 84% | Mutant 15% | Scavenger-Mutant Dominant Class ---------------- Mutant | -10/Materials Mutant | -10/Subcaves Resources | -11 -10 -10 ----------- Run | Yrd Mat Sub Matter Collected 683 | 205 323 155 Remotely . | . . . Salvage Created 947 | . 600 347 Parts 67 | . 40 27 Haulers Intercepted 1 | . 1 . Recyclers Shooed . | . . . Parts Field Recycled . | . . . Retrieved Matter . | . . . Parts Self-Destructed 3 | . . 3 Prevented . | . . . Kills | -11 -10 -10 ------- Run | Yrd Mat Sub Combat Hostiles Destroyed 23 | . 15 8 Guns 20 | . 15 5 Cannons 2 | . . 2 AOE 1 | . . 1 Classes Destroyed 4 | . 3 1 Hauler 1 | . 1 . Swarmer 3 | . 3 . Grunt 12 | . 12 . Subdweller 8 | . . 8 Best Kill Streak 3 | . 3 2 Combat Bots Only 3 | . 3 2 Max Kills in Single Turn 2 | . 2 1 Gunslinging 1 | . 1 . Exploded 1 | . . 1 Melee . | . . . Uniques/NPCs Destroyed . | . . . Combat | -11 -10 -10 -------- Run | Yrd Mat Sub Hostile Shots Fired 113 | . 80 33 Missed 39 | . 25 14 Hits 74 | . 55 19 Projectile 74 | . 55 19 AOE 1 | . . 1 Critical Strikes 2 | . 1 1 Damage Taken 1122 | . 660 462 Core 271 | . 159 112 Absorbed by Shields . | . . . Redirected to Shielding 3 | . . 3 Core Remaining (%) 100 | 100 . . Volleys Fired 101 | . 68 33 Largest 2 | . 2 2 Hottest 145 | . 130 145 Shots Fired 182 | . 129 53 Gun 152 | . 122 30 Cannon 13 | . . 13 Launcher 1 | . . 1 Special 16 | . 7 9 Kinetic 93 | . 87 6 Thermal 89 | . 42 47 Explosive . | . . . Electromagnetic . | . . . Robot Hit Streak 11 | . 11 10 Robot Miss Streak 5 | . 5 2 Penetration Max . | . . . Secondary Targets 3 | . 3 . Max Gunslinging Chain 1 | . 1 . Shots Hit Robots 99 | . 72 27 Core Hits 45 | . 31 14 Critical Kills . | . . . Critical Parts Destroyed . | . . . Critical Strikes 3 | . 1 2 Burn 3 | . 1 2 Melee Attacks . | . . . Impact . | . . . Slashing . | . . . Piercing . | . . . Sneak Attacks . | . . . Combat Hostiles . | . . . Follow-up Attacks . | . . . Damage Inflicted 1346 | . 799 547 Guns 1097 | . 775 322 Cannons 173 | . . 173 Explosions 52 | . . 52 Melee . | . . . Ramming . | . . . Kinetic 626 | . 512 114 Thermal 720 | . 287 433 Explosive . | . . . Electromagnetic . | . . . Impact . | . . . Slashing . | . . . Piercing . | . . . Highest Corruption . | . . . Average Corruption . | . . . Corruption Purged . | . . . Corruption Blocked . | . . . Overload Shots . | . . . Overflow Damage . | . . . Projectiles . | . . . Explosions . | . . . Melee . | . . . Knockbacks 1 | . . 1 Impact . | . . . Kinetic 1 | . . 1 Secondary . | . . . Self-Inflicted Damage . | . . . Shots . | . . . Rammed . | . . . Targets Rammed . | . . . Kicked . | . . . Crushed . | . . . Highest Temperature 83 | . 66 83 Average Temperature 20 | . 17 29 Received Heat Transfer 408 | . 354 54 Siege Activations . | . . . Martial Activations . | . . . Shielding Activations . | . . . Robots Disrupted . | . . . Combat Hostiles . | . . . Robots Corrupted . | . . . Combat Hostiles . | . . . Parts Fried . | . . . Impact Corruptions . | . . . Robots Melted . | . . . Combat Hostiles . | . . . Parts Melted 2 | . 1 1 Heat Transferred 1789 | . 753 1036 Parts Sabotaged . | . . . Parts Stolen . | . . . Parts Stripped . | . . . Power Chain Reactions . | . . . Alert | -11 -10 -10 ------- Run | Yrd Mat Sub Maximum Alert Level . | . . . Low Security (%) 100 | 100 100 . Level 1 . | . . . Level 2 . | . . . Level 3 . | . . . Level 4 . | . . . Level 5 . | . . . High Security . | . . . Max Security . | . . . Peak Influence 132 | . 132 . Initial . | . . . Average 52 | . 55 . Influence Increases 463 | . 463 . Destroy 0b10 Robot/C 300 | . 300 . Destroy 0b10 Robot/NC 5 | . 5 . Destroy Leader 72 | . 72 . Successful Hack 18 | . 18 . Destroy Structure 8 | . 8 . Lose Combat Pursuer 60 | . 60 . Influence Decreases 463 | . 463 . Time Decay 423 | . 423 . Lost Part 40 | . 40 . Squads Dispatched 3 | . 3 . Investigation 1 | . 1 . Extermination . | . . . Reinforcement 2 | . 2 . Assault . | . . . Garrison . | . . . Intercept . | . . . Searches Triggered . | . . . Construction Impeded . | . . . Haulers Reinforced . | . . . Active Scanning Responses . | . . . Cargo Convoy Interrupts . | . . . Stealth | -11 -10 -10 --------- Run | Yrd Mat Sub Distress Signals . | . . . Communications Jammed . | . . . Distress Signals . | . . . Times Spotted 37 | . 27 10 Peak Tracking Total 4 | . 4 2 Tactical Retreats 3 | . 3 . Traps | -11 -10 -10 ------- Run | Yrd Mat Sub Traps Triggered 5 | . 5 . Indirectly . | . . . Trap Hack Attempts . | . . . Triggered . | . . . Disarmed . | . . . Reprogrammed . | . . . Reused . | . . . Traps Extracted . | . . . Installed . | . . . Triggered . | . . . Machines | -11 -10 -10 ---------- Run | Yrd Mat Sub Machines Disabled 1 | . . 1 Max in Single Turn 1 | . . 1 Machines Repaired . | . . . Machines Dismantled . | . . . Machines Sabotaged . | . . . Overloaded Fab Kills . | . . . Hacking | -11 -10 -10 --------- Run | Yrd Mat Sub Machines Accessed 6 | . 3 3 Terminals 3 | . 3 . Fabricators . | . . . Repair Stations . | . . . Recycling Units . | . . . Scanalyzers . | . . . Garrison Access . | . . . Total Hacks 7 | . 4 3 Successful 6 | . 3 3 Failed 1 | . 1 . Catastrophic . | . . . Database Lockouts . | . . . Manual 2 | . 2 . Terminals 4 | . 4 . Fabricators . | . . . Repair Stations . | . . . Recycling Units . | . . . Scanalyzers . | . . . Garrison Access . | . . . Terminal Hacks 4 | . 1 3 Prototype ID Bank 1 | . 1 . Open Door 1 | . . 1 Proto ID Catalog 1 | . . 1 Release Object 1 | . . 1 Fabricator Hacks . | . . . Repair Station Hacks . | . . . Recycling Unit Hacks . | . . . Scanalyzer . | . . . Garrison Access Hacks . | . . . Unauthorized Hacks 2 | . 2 . Terminals 2 | . 2 . Botnet 2 | . 2 . Fabricators . | . . . Repair Stations . | . . . Recycling Units . | . . . Scanalyzers . | . . . Garrison Access . | . . . Data Cores Recovered . | . . . Used . | . . . Hacking Detections 1 | . 1 . Full Trace Events . | . . . Feedback Events . | . . . Feedback Blocked . | . . . Robot Schematics Acquired . | . . . Robots Built . | . . . Authchips . | . . . Time . | . . . Total Robot Build Rating . | . . . Part Schematics Acquired . | . . . Parts Built . | . . . Authchips . | . . . Time . | . . . Total Part Build Rating . | . . . Parts Repaired . | . . . Time . | . . . Parts Recycled . | . . . Recycled Matter . | . . . Retrieved Matter . | . . . Retrieved Components . | . . . Parts Scanalyzed . | . . . Part Schematics Acquired . | . . . Parts Damaged . | . . . Bothacking | -11 -10 -10 ------------ Run | Yrd Mat Sub Used RIF Installer . | . . . Robots Hacked . | . . . Non-combat . | . . . Combat . | . . . Robot Hacks Applied . | . . . Relay Couplers Released . | . . . Fabnet Peak Effective % . | . . . Robots Rewired . | . . . Allies Hacked . | . . . Hacks Repelled . | . . . Allies | -11 -10 -10 -------- Run | Yrd Mat Sub Total Allies . | . . . Largest Group . | . . . Highest-Rated Group . | . . . Highest-Rated Ally . | . . . Total Orders . | . . . Ally Attacks . | . . . Total Damage . | . . . Kills . | . . . Allies Corrupted . | . . . Allies Melted . | . . . Intel | -11 -10 -10 ------- Run | Yrd Mat Sub Active Infowar (turns) . | . . . Robot Analysis Total . | . . . Derelict Logs Recovered . | . . . Drone Launches . | . . . Drone Recoveries . | . . . Exploration | -11 -10 -10 ------------- Run | Yrd Mat Sub Turns Passed 2670 | 72 1213 1385 Spaces Moved 1578 | 59 682 837 Core 21 | 18 3 . Treads . | . . . Legs 119 | 41 78 . Wheels 1438 | . 601 837 Hover . | . . . Flight . | . . . Fastest Speed 50 | 50 90 135 Average Speed 134 | 98 136 135 Slowest Speed 1550 | 120 1550 135 Overloaded Moves . | . . . Propulsion Burnouts . | . . . Robots Hopped . | . . . Potential Cave-ins . | . . . Cave-ins Triggered . | . . . Exploration Rate (%) 49 | 4 97 47 Regions Visited 2 Branch Regions 1 Pre-discovered Areas 1 | . . 1 Known Exits Taken . | . . . Unknown Exits Taken 2 | 1 1 . Scrap Searched 9 | . . 9 Spaces Dug 6 | . 6 . Terrain Destroyed 21 | . 6 15 Melee . | . . . Projectile 8 | . 6 2 AOE 13 | . . 13 Terrain Rammed . | . . . Walls Destroyed . | . . . Machines Disabled . | . . . Actions | -11 -10 -10 --------- Run | Yrd Mat Sub Total 1930 | 70 831 1029 Wait 140 | . 25 115 Move 1576 | 58 681 837 Hop . | . . . Pick Up 47 | 6 29 12 Fast Attach 8 | 6 2 . Attach 11 | . 10 1 Detach 1 | . 1 . Swap 18 | . 10 8 Drop 28 | . 5 23 Fire 101 | . 68 33 Melee . | . . . Ram . | . . . Kick . | . . . Crush . | . . . Escape Stasis . | . . . Rewire . | . . . Trap . | . . . Miscellaneous . | . . . Route ------- -11/Scrapyard -10/Materials (discovered 5 exits: [*Mat x3] / [*Min] / *Sub) -10/Subcaves History --------- Turn | Location | Event 5 | -11/Scrapyard | Discovered new exit (range 14) 73 | -11/Scrapyard | Entered Materials 261 | -10/Materials | Discovered new exit (range 16) 301 | -10/Materials | Build established: Mutant 367 | -10/Materials | Discovered new exit (range 12) 593 | -10/Materials | Discovered new exit (range 16) 604 | -10/Materials | Core integrity fell below 50% 782 | -10/Materials | Discovered new exit (range 5) 1280 | -10/Materials | Discovered new exit (range 5) 1286 | -10/Materials | Entered Subcaves 1303 | -10/Subcaves | Build established: Scavenger-Mutant 1664 | -10/Subcaves | Core integrity fell below 20% 1714 | -10/Subcaves | Build established: Mutant 2048 | -10/Subcaves | Visited 4L-MR0's lab 2078 | -10/Subcaves | Found Tower Shield 2261 | -10/Subcaves | Shifting Twisted Machinery released Battle Cannon 2293 | -10/Subcaves | A swath of the cavern ceiling suddenly collapsed 2293 | -10/Subcaves | Shifting Twisted Machinery released Flamer 2318 | -10/Subcaves | Learned location of Zion (-6) 2318 | -10/Subcaves | Met a Zionite searching for "candidates" 2470 | -10/Subcaves | Disturbed a concealed Subdweller 2634 | -10/Subcaves | Found SUBCON Basin 2658 | -10/Subcaves | Ambushed by Subdweller buried in earth 2671 | -10/Subcaves | Destroyed by AF-NDN(R) with Subdweller Beam Cannon Last Messages --------------- 02613_ Dropped Sml. Storage Unit. 02614_ Dropped Datajack. 02614_ Dropped Signal Interpreter. 02615_ Dropped Mining Laser. 02615_ Dropped Imp. Targeting Computer. 02617_ Dropped Lgt. Ion Engine. 02618_ Dropped Imp. Heat Sink. 02626_ Connecting with UFD SUBCON Station... 02633_ Connecting with SUBCON Basin Controls... >>Release Inventory Accessing inventory controls... Collection purity confirmed 100%... Ejecting SUBCON Basin... Delivery behind schedule, handle with care! 02634_ Acquired SUBCON Basin. 02659_ KD-AOV(R): "NAT20!" 02659_ AF-NDN(R): "ARGHSUB!" 02660_ QP-QFY(R) destroyed. 02669_ AF-NDN(R) knocked back. 02670_ Wheel destroyed. Map ----- +----------------------------------------------------+ | | | | | | | | | | | | | | | | | | | ?????????????????????????????????????????????????? | | ?????????????????????????????????????????????????? | | ?????????????????????????????????????????????????? | | ######?????????########??????????????????????????? | | ""##????????#""""""#??????????????????????????? | | "" ##???????#"X""""#??????????????????????????? | | ####"^ #???????#" #??????????????????????????? | | #??## #???????#" #??????????????????????????? | | #???# #???????#"""" "#??????????????????????????? | | ??### "#???????##### ##??????????????????????????? | | ###" #?????????#"" "#??????????????????????????? | | """ " ##????????## X###????????????????????????? | | ###???????## ### ######??????????????????? | | """%[#???????# #### # ######?????????????? | | %="# ##??###### /## ;;;; ;;;;; # #???????????? | | "### #### ##;[[! ;; R ;;;#????????????? | | ## # ![!/| ; @ ! ????????? | | [!! ; R ]%! ????????? | | "# ### !* ;;;;;;% ! ????????? | | #### ######?## ;# ## ;;%;;#####?????????? | | ##?# ##??????### ;##?##?? ##?????????????? | | #?# #????????## ##????????####??????????????? | | ###?# #?????????###???????????????????????????? | | #???## #?????? ????????????????????????????????? | | ?????## #?????? ????????????????????????????????? | | ####### ##????? #???????????????????????????????? | | ## # ##???? #??????????????????????????????? | | ##??? ##?????????????????????????????? | | #??? ##????????????????????????????? | | # # #??? ##???????????????????????????? | | ### #??? #???????????????????????????? | | ?# #???# #???????????????????????????? | | ?# ##???# #????????????????????????????? | | ?# ##???## #????????????????????????????? | | ?# ###???## #????????#?????????###???????? | | ?## ####### #????????######???## ##??????? | | ?## #???######"""###### #??????? | | ## # #???#""# ""#""##" ###????? | | # #######" """"## ""# ""#????? | | ##" " """"###""### "####?? | | ## ### "# #"""|" """"#### "" #?? | +----------------------------------------------------+ Best States ------------- Heat Dissipation 39 Energy Generation 14 Energy Capacity 250 Matter Stores 300 Matter Capacity 300 Sight Range 16 Terrain Scan Density 10 Armor Coverage 100 Core Shielding 20 Evasion (%) 55 Item Schematics ----------------- None Robot Schematics ------------------ None Fabricated ------------ Nothing Repaired ---------- Nothing Alien Tech Used ----------------- None Achievements -------------- None Challenges ------------ None Game ------ Seed FieldthrustNodeGun Manual? 0 Play Time 00:20:14 Cumulative 265.8 hours Start 2025.05.28 @ 22:15:50 End 2025.05.28 @ 22:51:42 Sessions 1 Manual Loads 0 Difficulty Rogue Special Mode None Game No. 402 Rogue 402 Adventurer 0 Explorer 0 Win Type - Total 1 Types 1/0/0/0/0/0/0/0/0/0 Lore% 64 Gallery% 63 Achievement% 43 Wizard Run 0 Options --------- Layout 1 ASCII 0 Keyboard 0 Movement Mouse Keybinds 0 Fullscreen 2 Font 24/Smallcaps Map View 50x35 Zoom Use 0% Tactical HUD 1 Map Filters NONE Filters NONE Steam 1 RUN: 1b42e036-cb8e-4862-9645-faa13abcfbf0